Cogmind - Beta 15 @@@ ROGUE MODE // 2025.05.08 @ 22:04:21 // Winter2019/RPGLIKE Player: Quartz Result: Self-destructed Performance ------------- Evolutions (2) 1000 Regions Visited (5) 1000 Robots Destroyed (30) 150 Value Destroyed (736) 736 Prototype IDs (23) 460 Alien Tech Used (0) 0 Bonus (300) 300 TOTAL SCORE: 3646 Bonus ------- Aligned with FarCom 300 Cogmind --------- Core Integrity 389/750 Matter 300/300 Energy 150/150 System Corruption 0% Temperature Cool (40) Movement Walking (130) Location -8/Materials Parts ------- > --- POWER (1) -------- Micro Nuclear Core > --- PROPULSION (3) --- Improved Titanium Leg Improved Titanium Leg Improved Titanium Leg > --- UTILITY (5) ------ Signal Interpreter Improved Terrain Scanner Targeting Computer Targeting Computer Hardened Light Armor Plating > --- WEAPON (2) ------- AWS/Gauss > --- INVENTORY (2) ---- Protomatter-46 Protomatter-44 Peak State ------------ > --- POWER ------------ Micro Nuclear Core > --- PROPULSION ------- Improved Titanium Leg Improved Titanium Leg Improved Titanium Leg > --- UTILITY ---------- Signal Interpreter Improved Terrain Scanner Targeting Computer Targeting Computer Hardened Light Armor Plating > --- WEAPON ----------- AWS/Gauss > --- INVENTORY -------- Light Ion Engine Improved Titanium Leg [Rating: 40] Favorites ----------- Power Light Ion Engine Engine Light Ion Engine Power Core Micro Nuclear Core Propulsion Aluminum Leg Leg Aluminum Leg Utility Targeting Computer Device Improved Terrain Scanner Processor Targeting Computer Protection Hardened Light Armor Plating Weapon Light Cannon Energy Gun Particle Gun Ballistic Gun Light Assault Rifle Ballistic Cannon Light Cannon Build | -11 -10 -10 -10 -9 -8 ------- Run | Yrd Mat Min Exi Min Mat Slots Evolved 7 | 4 1 . . 1 1 Power . | . . . . . . Propulsion 2 | 1 . . . 1 . Utility 4 | 3 . . . . 1 Weapon 1 | . 1 . . . . Parts Attached 16 | 5 4 1 1 . 5 Power 2 | 1 . . . . 1 Engine 1 | 1 . . . . . Core 1 | . . . . . 1 Reactor . | . . . . . . Propulsion 5 | 2 . . . . 3 Treads . | . . . . . . Leg 5 | 2 . . . . 3 Wheel . | . . . . . . Hover . | . . . . . . Flight . | . . . . . . Utility 5 | 1 3 . . . 1 Device 1 | 1 . . . . . Storage . | . . . . . . Processor 3 | . 3 . . . . Hackware . | . . . . . . Protection 1 | . . . . . 1 Artifact . | . . . . . . Weapon 4 | 1 1 1 1 . . Energy Gun 1 | . . 1 . . . Energy Cannon . | . . . . . . Ballistic Gun 2 | 1 . . 1 . . Ballistic Cannon 1 | . 1 . . . . Launcher . | . . . . . . Special Weapon . | . . . . . . Impact Weapon . | . . . . . . Slashing Weapon . | . . . . . . Piercing Weapon . | . . . . . . Special Melee Weapon . | . . . . . . Unidentified Prototypes . | . . . . . . Parts Lost . | . . . . . . Power . | . . . . . . Propulsion . | . . . . . . Utility . | . . . . . . Weapon . | . . . . . . Highest Loss Streak . | . . . . . . To Critical Strikes . | . . . . . . Average Backups . | . . . . . 1 Power . | . . . . . . Propulsion . | . . . . . . Utility . | . . . . . . Weapon . | . . . . . . Tool/Special . | . . . . . . Unused Backups 3 | . . . 1 . 2 Power . | . . . . . . Propulsion 1 | . . . . . 1 Utility 1 | . . . 1 . . Weapon 1 | . . . . . 1 Tool/Special . | . . . . . . Average Slot Usage (%) 91 | . 90 90 95 84 83 Engine 10 | . 11 11 11 10 4 Leg 23 | . 24 22 22 21 23 Device 11 | . 11 11 11 10 9 Processor 30 | . 28 33 33 31 27 Energy Gun 2 | . . 2 6 . . Ballistic Gun 5 | . 8 . 4 10 9 Ballistic Cannon 5 | . 3 11 6 . . Peak Build Rating 40 | 7 10 12 25 25 40 Average Rating 13 | 4 9 10 17 25 34 On Entrance 13 | . 7 10 12 25 25 Naked Turns . | . . . . . . Heaviest Build 22 | 5 7 10 14 14 22 Greatest Support 65 | 20 20 20 20 25 65 Greatest Overweight (x) . | . . . . . . Average Overweight (x) . | . . . . . . Largest Inventory Capacity 2 | . 2 2 2 2 2 Average Capacity 1 | . . 2 2 2 2 Most Carried 2 | . . 1 2 . 2 Average Carried . | . . . . . 1 Final Capacity 2 | . 2 2 2 2 2 Final Carried 2 | . . . . . 2 Class Distribution -------------------- 91% | Mutant 8% | Skirmisher Dominant Class ---------------- Mutant | -10/Materials Mutant | -10/Mines Mutant | -10/Exiles Skirmisher | -9/Mines Skirmisher | -8/Materials Resources | -11 -10 -10 -10 -9 -8 ----------- Run | Yrd Mat Min Exi Min Mat Matter Collected 570 | 83 389 38 . . 60 Remotely . | . . . . . . Salvage Created 759 | 56 527 53 . . 123 Parts 57 | 3 35 5 . . 14 Haulers Intercepted 2 | . 2 . . . . Recyclers Shooed 1 | . 1 . . . . Parts Field Recycled . | . . . . . . Retrieved Matter . | . . . . . . Parts Self-Destructed . | . . . . . . Prevented . | . . . . . . Kills | -11 -10 -10 -10 -9 -8 ------- Run | Yrd Mat Min Exi Min Mat Combat Hostiles Destroyed 22 | . 14 2 . . 6 Guns 16 | . 12 . . . 4 Cannons 4 | . 2 2 . . . AOE 2 | . . . . . 2 Classes Destroyed 6 | 1 4 . . . 1 Tunneler 2 | 2 . . . . . Hauler 2 | . 2 . . . . Watcher 4 | . 2 . . . 2 Swarmer 9 | . 7 . . . 2 Grunt 12 | . 7 2 . . 3 Brawler 1 | . . . . . 1 Best Kill Streak 4 | 2 3 2 . . 4 Combat Bots Only 4 | . 3 2 . . 4 Max Kills in Single Turn 4 | 1 1 1 . . 4 Gunslinging . | . . . . . . Exploded 2 | . . . . . 2 Melee . | . . . . . . Uniques/NPCs Destroyed . | . . . . . . Combat | -11 -10 -10 -10 -9 -8 -------- Run | Yrd Mat Min Exi Min Mat Hostile Shots Fired 135 | . 99 10 . . 26 Missed 41 | . 26 5 . . 10 Hits 94 | . 73 5 . . 16 Projectile 94 | . 73 5 . . 16 Damage Taken 1029 | . 700 82 . . 247 Core 823 | . 561 63 . . 199 Absorbed by Shields . | . . . . . . Redirected to Core 617 | . 433 63 . . 121 Core Remaining (%) 79 | 100 . . . 58 . Volleys Fired 133 | 18 108 7 . . . Largest 1 | 1 1 1 . . . Hottest 30 | 20 30 30 . . . Shots Fired 159 | 18 108 7 . . 26 Gun 132 | 18 88 . . . 26 Cannon 27 | . 20 7 . . . Launcher . | . . . . . . Special . | . . . . . . Kinetic 159 | 18 108 7 . . 26 Thermal . | . . . . . . Explosive . | . . . . . . Electromagnetic . | . . . . . . Robot Hit Streak 16 | 5 8 3 . . 16 Robot Miss Streak 4 | 3 4 1 . . 4 Penetration Max . | . . . . . . Secondary Targets . | . . . . . . Autonomous 27 | . . . . . 27 Shots Hit Robots 109 | 11 73 5 . . 20 Core Hits 45 | 4 30 3 . . 8 Critical Kills 1 | . 1 . . . . Critical Parts Destroyed . | . . . . . . Critical Strikes 1 | . 1 . . . . Destroy 1 | . 1 . . . . Melee Attacks . | . . . . . . Impact . | . . . . . . Slashing . | . . . . . . Piercing . | . . . . . . Sneak Attacks . | . . . . . . Combat Hostiles . | . . . . . . Follow-up Attacks . | . . . . . . Damage Inflicted 2007 | 94 726 86 . . 1101 Guns 1218 | 94 481 . . . 643 Cannons 330 | . 244 86 . . . Explosions 458 | . . . . . 458 Melee . | . . . . . . Ramming 1 | . 1 . . . . Kinetic 1548 | 94 725 86 . . 643 Thermal 458 | . . . . . 458 Explosive . | . . . . . . Electromagnetic . | . . . . . . Impact . | . . . . . . Slashing . | . . . . . . Piercing . | . . . . . . Highest Corruption . | . . . . . . Average Corruption . | . . . . . . Corruption Purged . | . . . . . . Corruption Blocked . | . . . . . . Overload Shots . | . . . . . . Overflow Damage 183 | . . . . . 183 Projectiles . | . . . . . . Explosions 183 | . . . . . 183 Melee . | . . . . . . Knockbacks 3 | . 3 . . . . Impact . | . . . . . . Kinetic 2 | . 2 . . . . Secondary 1 | . 1 . . . . Self-Inflicted Damage . | . . . . . . Shots . | . . . . . . Rammed . | . . . . . . Targets Rammed 2 | . 2 . . . . Kicked 2 | . 2 . . . . Crushed . | . . . . . . Highest Temperature 31 | . 12 4 . . 31 Average Temperature 7 | . 4 4 . . 21 Received Heat Transfer 420 | . 240 45 . . 135 Siege Activations . | . . . . . . Martial Activations . | . . . . . . Shielding Activations . | . . . . . . Robots Disrupted . | . . . . . . Combat Hostiles . | . . . . . . Robots Corrupted . | . . . . . . Combat Hostiles . | . . . . . . Parts Fried . | . . . . . . Impact Corruptions . | . . . . . . Robots Melted . | . . . . . . Combat Hostiles . | . . . . . . Parts Melted . | . . . . . . Heat Transferred 300 | . . . . . 300 Parts Sabotaged . | . . . . . . Parts Stolen . | . . . . . . Parts Stripped . | . . . . . . Power Chain Reactions . | . . . . . . Alert | -11 -10 -10 -10 -9 -8 ------- Run | Yrd Mat Min Exi Min Mat Maximum Alert Level 1 | . . . . . 1 Low Security (%) 98 | 100 100 100 . 100 81 Level 1 1 | . . . . . 18 Level 2 . | . . . . . . Level 3 . | . . . . . . Level 4 . | . . . . . . Level 5 . | . . . . . . High Security . | . . . . . . Max Security . | . . . . . . Peak Influence 213 | 5 160 50 . . 213 Initial 48 | . . 48 . . . Average 39 | . 56 12 . . 64 Influence Increases 668 | 10 373 50 . . 235 Destroy 0b10 Robot/C 440 | . 280 40 . . 120 Destroy 0b10 Robot/NC 40 | 10 20 . . . 10 Destroy Leader 82 | . 48 10 . . 24 Successful Hack 10 | . 10 . . . . Disable Machine 75 | . 15 . . . 60 Destroy Structure 6 | . . . . . 6 Lose Combat Pursuer 15 | . . . . . 15 Influence Decreases 475 | 10 247 176 . . 42 Entered New Map 78 | . . 78 . . . Time Decay 397 | 10 247 98 . . 42 Squads Dispatched 3 | . 2 . . . 1 Investigation 1 | . 1 . . . . Extermination . | . . . . . . Reinforcement 2 | . 1 . . . 1 Assault . | . . . . . . Garrison . | . . . . . . Intercept . | . . . . . . Searches Triggered . | . . . . . . Construction Impeded . | . . . . . . Haulers Reinforced . | . . . . . . Active Scanning Responses . | . . . . . . Cargo Convoy Interrupts . | . . . . . . Stealth | -11 -10 -10 -10 -9 -8 --------- Run | Yrd Mat Min Exi Min Mat Distress Signals 5 | . 3 . . . 2 Communications Jammed . | . . . . . . Distress Signals . | . . . . . . Times Spotted 47 | . 27 2 . . 18 Peak Tracking Total 9 | . 7 2 . . 9 Tactical Retreats 1 | . . . . . 1 Traps | -11 -10 -10 -10 -9 -8 ------- Run | Yrd Mat Min Exi Min Mat Traps Triggered 1 | . 1 . . . . Indirectly . | . . . . . . Trap Hack Attempts . | . . . . . . Triggered . | . . . . . . Disarmed . | . . . . . . Reprogrammed . | . . . . . . Reused . | . . . . . . Traps Extracted . | . . . . . . Installed . | . . . . . . Triggered . | . . . . . . Machines | -11 -10 -10 -10 -9 -8 ---------- Run | Yrd Mat Min Exi Min Mat Machines Disabled 5 | . 1 . . . 4 Max in Single Turn 3 | . 1 . . . 3 Machines Repaired . | . . . . . . Machines Dismantled . | . . . . . . Machines Sabotaged . | . . . . . . Overloaded Fab Kills . | . . . . . . Hacking | -11 -10 -10 -10 -9 -8 --------- Run | Yrd Mat Min Exi Min Mat Machines Accessed 6 | . 5 . 1 . . Terminals 4 | . 4 . . . . Fabricators . | . . . . . . Repair Stations . | . . . . . . Recycling Units 1 | . 1 . . . . Scanalyzers . | . . . . . . Garrison Access . | . . . . . . Total Hacks 15 | . 14 . 1 . . Successful 10 | . 9 . 1 . . Failed 5 | . 5 . . . . Catastrophic . | . . . . . . Database Lockouts . | . . . . . . Manual 11 | . 10 . 1 . . Terminals 11 | . 11 . . . . Fabricators . | . . . . . . Repair Stations . | . . . . . . Recycling Units 3 | . 3 . . . . Scanalyzers . | . . . . . . Garrison Access . | . . . . . . Terminal Hacks 4 | . 3 . 1 . . Emergency Access Points 1 | . 1 . . . . Alert Level 1 | . 1 . . . . Locate Traps 1 | . 1 . . . . Proto ID Catalog 1 | . . . 1 . . Fabricator Hacks . | . . . . . . Repair Station Hacks . | . . . . . . Recycling Unit Hacks 1 | . 1 . . . . Retrieve Components 1 | . 1 . . . . Scanalyzer . | . . . . . . Garrison Access Hacks . | . . . . . . Unauthorized Hacks 5 | . 5 . . . . Terminals 3 | . 3 . . . . Botnet 3 | . 3 . . . . Fabricators . | . . . . . . Repair Stations . | . . . . . . Recycling Units 2 | . 2 . . . . Reject 1 | . 1 . . . . Mask 1 | . 1 . . . . Scanalyzers . | . . . . . . Garrison Access . | . . . . . . Data Cores Recovered . | . . . . . . Used . | . . . . . . Hacking Detections 5 | . 5 . . . . Full Trace Events . | . . . . . . Feedback Events . | . . . . . . Feedback Blocked . | . . . . . . Robot Schematics Acquired . | . . . . . . Robots Built . | . . . . . . Authchips . | . . . . . . Time . | . . . . . . Total Robot Build Rating . | . . . . . . Part Schematics Acquired . | . . . . . . Parts Built . | . . . . . . Authchips . | . . . . . . Time . | . . . . . . Total Part Build Rating . | . . . . . . Parts Repaired . | . . . . . . Time . | . . . . . . Parts Recycled . | . . . . . . Recycled Matter . | . . . . . . Retrieved Matter . | . . . . . . Retrieved Components 2 | . 2 . . . . Parts Scanalyzed . | . . . . . . Part Schematics Acquired . | . . . . . . Parts Damaged . | . . . . . . Bothacking | -11 -10 -10 -10 -9 -8 ------------ Run | Yrd Mat Min Exi Min Mat Used RIF Installer . | . . . . . . Robots Hacked . | . . . . . . Non-combat . | . . . . . . Combat . | . . . . . . Robot Hacks Applied . | . . . . . . Relay Couplers Released . | . . . . . . Fabnet Peak Effective % . | . . . . . . Robots Rewired . | . . . . . . Allies Hacked . | . . . . . . Hacks Repelled . | . . . . . . Allies | -11 -10 -10 -10 -9 -8 -------- Run | Yrd Mat Min Exi Min Mat Total Allies . | . . . . . . Largest Group . | . . . . . . Highest-Rated Group . | . . . . . . Highest-Rated Ally . | . . . . . . Total Orders . | . . . . . . Ally Attacks . | . . . . . . Total Damage . | . . . . . . Kills . | . . . . . . Allies Corrupted . | . . . . . . Allies Melted . | . . . . . . Intel | -11 -10 -10 -10 -9 -8 ------- Run | Yrd Mat Min Exi Min Mat Active Infowar (turns) 1955 | 24 857 466 420 27 161 Terrain 1955 | 24 857 466 420 27 161 Robot Analysis Total . | . . . . . . Derelict Logs Recovered . | . . . . . . Drone Launches . | . . . . . . Drone Recoveries . | . . . . . . Exploration | -11 -10 -10 -10 -9 -8 ------------- Run | Yrd Mat Min Exi Min Mat Turns Passed 2043 | 112 857 466 420 27 161 Spaces Moved 1420 | 65 511 370 347 23 104 Core 8 | 8 . . . . . Treads . | . . . . . . Legs 1412 | 57 511 370 347 23 104 Wheels . | . . . . . . Hover . | . . . . . . Flight . | . . . . . . Fastest Speed 50 | 50 120 120 120 120 120 Average Speed 120 | 111 120 120 120 120 126 Slowest Speed 130 | 120 120 120 120 120 130 Overloaded Moves . | . . . . . . Propulsion Burnouts . | . . . . . . Robots Hopped . | . . . . . . Potential Cave-ins . | . . . . . . Cave-ins Triggered . | . . . . . . Exploration Rate (%) 36 | 4 73 59 62 6 15 Regions Visited 5 Branch Regions 3 Pre-discovered Areas . | . . . . . . Known Exits Taken 4 | . 1 1 1 1 . Unknown Exits Taken 1 | 1 . . . . . Scrap Searched . | . . . . . . Spaces Dug . | . . . . . . Terrain Destroyed 6 | . . . . . 6 Melee . | . . . . . . Projectile 4 | . . . . . 4 AOE 2 | . . . . . 2 Terrain Rammed . | . . . . . . Walls Destroyed . | . . . . . . Machines Disabled . | . . . . . . Actions | -11 -10 -10 -10 -9 -8 --------- Run | Yrd Mat Min Exi Min Mat Total 1643 | 87 662 385 352 22 135 Wait 37 | . 28 3 . . 6 Move 1415 | 64 510 369 346 22 104 Hop . | . . . . . . Pick Up 11 | . . 1 2 . 8 Fast Attach 8 | 5 3 . . . . Attach 4 | . . 1 1 . 2 Detach . | . . . . . . Swap 4 | . 1 . . . 3 Drop 8 | . . . 3 . 5 Fire 133 | 18 108 7 . . . Melee . | . . . . . . Ram . | . . . . . . Kick 2 | . 2 . . . . Crush . | . . . . . . Escape Stasis . | . . . . . . Rewire . | . . . . . . Trap . | . . . . . . Miscellaneous 21 | . 10 4 . . 7 Route ------- -11/Scrapyard -10/Materials (discovered 3 exits: *Mat x2 / *Min) -10/Mines (discovered 2 exits: *Mat / *Exi) -10/Exiles -9/Mines -8/Materials History --------- Turn | Location | Event 1 | -11/Scrapyard | Upgraded with Propulsion slot (x1) 1 | -11/Scrapyard | Upgraded with Utility slot (x3) 23 | -11/Scrapyard | Discovered new exit (range 15) 113 | -11/Scrapyard | Entered Materials 297 | -10/Materials | Discovered new exit (range 8) 307 | -10/Materials | Build established: Mutant 554 | -10/Materials | Discovered new exit (range 15) 760 | -10/Materials | Discovered new exit (range 15) 847 | -10/Materials | Core integrity fell below 50% 856 | -10/Materials | Reached level 2 869 | -10/Materials | Upgraded with Weapon slot (x1) 968 | -10/Materials | Identified exit to Mines 970 | -10/Materials | Entered Mines 978 | -10/Mines | Discovered new exit (range 10) 993 | -10/Mines | Identified exit to Materials 1419 | -10/Mines | Discovered new exit (range 11) 1428 | -10/Mines | Deemed a non-threat by the Exiles lab entrance 1434 | -10/Mines | Identified exit to Exiles 1436 | -10/Mines | Entered Exiles 1481 | -10/Exiles | Met 8R-AWN 1506 | -10/Exiles | Met EX-HEX 1559 | -10/Exiles | Met EX-BIN 1585 | -10/Exiles | Aligned with FarCom system 1586 | -10/Exiles | Given EX-Vault access code 1625 | -10/Exiles | Opened EX-Vault 1634 | -10/Exiles | Found Supersonic Drone Bay 1659 | -10/Exiles | Warned to stay clear of 0b10 Research branches 1684 | -10/Exiles | Found AWS/Gauss 1754 | -10/Exiles | Met EX-DEC 1830 | -10/Exiles | Discovered new exit (range 11) 1848 | -10/Exiles | Identified exit to Mines 1856 | -10/Exiles | Left Exiles lab with AWS/Gauss 1856 | -10/Exiles | Entered Mines 1858 | -9/Mines | Reached level 3 1860 | -9/Mines | Upgraded with Propulsion slot (x1) 1864 | -9/Mines | Discovered new exit (range 5) 1870 | -9/Mines | Identified exit to Materials 1883 | -9/Mines | Entered Materials 1885 | -8/Materials | Reached level 4 1885 | -8/Materials | Upgraded with Utility slot (x1) 2033 | -8/Materials | AWS/Gauss suddenly broke down 2044 | -8/Materials | Self-destructed Last Messages --------------- integrity (+147, depleted) 02030_ U-05 Engineer lays Concrete. 02031_ Acquired 60 matter. 02031_ U-05 Engineer lays Concrete. 02032_ Slug penetrates G-50 Soldier. 02032_ R-06 Scavenger collects Aluminum Leg. 02032_ U-05 Engineer lays Concrete. 02033_ AWS/Gauss suddenly breaks down. 02033_ U-05 Engineer lays Concrete. 02035_ R-06 Scavenger collects Flight Unit. 02035_ U-05 Engineer lays Concrete. 02036_ R-06 Scavenger collects Particle Gun. 02037_ U-05 Engineer lays Concrete. 02039_ K-01 Serf collects debris. 02040_ U-05 Engineer lays Concrete. 02042_ U-05 Engineer destroyed. 02042_ U-05 Engineer lays Concrete. 02043_ K-01 Serf collects debris. 02044_ U-05 Engineer lays Concrete. 02044_ U-05 Engineer destroyed. Map ----- +----------------------------------------------------+ | #????#??????? ???????????????????????????????????? | | ????#??###?#?? ??????????????????????????????????? | | ??##?######? ????????????????????????????????????? | | ?######?#?#?? ## ??????????????????????????????? | | ############ #?##?##???#???????????????????????? | | #?##?#####?#########???#?#???????????????????????? | | ##############???###?#?###?#? ???????????????????? | | ########?###?##?#?#?#??###?#?####????????????????? | | #################?### ?"?""" ?#???????????????? | | ##### ########## """"" ?#???#???????????? | | ##### ###?###### ?"""" #??##????????????? | | ###?# """ #########? ? #?? ???????????? | | ##### """ #####?#### ?? ??+??????????? | | ##### """ ########## #? ??#??????????? | | ##### ########?# ? #?????? ? ???????? | | ########+### #########+############ ? ???????? | | ?? ??????? | | ] !k ????????? | | [ ???????? | | ###### r w ##?????? | | ####### %=! u g"" r""" ? ????????? | | **/ # ? # *!!| == %"" """ "??????? | | ==**//#""" # u*[%= [ %%g% """ T"#????? | | #######""" + [!=% != g g ""#????? | | #######""" # ! %/! [ #??????? | | #######""" # @ #??????? | | #######""" # ! #####+#"####"###?????? | | ####### # a ## ? ###???#????? | | ############# "T" #? ? ####???????? | | ############# !! #? ?#?????????? | | #?########### !! #? ? ?##?????????? | | ########?#### o+ ? ?????#??????? | | #####?###?#?# #?? ????#???????? | | ?####??###?## ####"T"#### ## ? ##?????????? | | ###?###?#??## #?#####?###g#? ? ? #??????????? | | ##?###?##?#?# ???####?###?#g##?? ? ????????????? | | ###?##?#????????#???#????#?g#??#####?????????????? | | #?###????????????????#???##/####?##??????????????? | | ???????????????????#????#? ?? ????????????????? | | ????????????????????????? ? ? ?????????????????? | | ???????????????????????????""????????????????????? | | ?????????????????????????????????????????????????? | | ?????????????????????????????????????????????????? | | ?????????????????????????????????????????????????? | | ?????????????????????????????????????????????????? | | ?????????????????????????????????????????????????? | | ?????????????????????????????????????????????????? | | ?????????????????????????????????????????????????? | | ?????????????????????????????????????????????????? | | ?????????????????????????????????????????????????? | +----------------------------------------------------+ Best States ------------- Heat Dissipation 25 Energy Generation 15 Energy Capacity 150 Matter Stores 300 Matter Capacity 300 Sight Range 17 Robot Scan Range 4 Terrain Scan Range 16 Terrain Scan Density 310 Armor Coverage 150 Evasion (%) 55 Targeting Accuracy 10 Offensive Hacking 5 Defensive Hacking 5 Item Schematics ----------------- None Robot Schematics ------------------ None Fabricated ------------ Nothing Repaired ---------- Nothing Alien Tech Used ----------------- None Achievements -------------- None Challenges ------------ None RPGLIKE | -11 -10 -10 -10 -9 -8 --------- Run | Yrd Mat Min Exi Min Mat Levels Raised 3 | . 1 . . 1 1 XP Earned 8805 | 3000 1705 750 350 500 2500 XP Spent 7450 | 3000 1450 . . 1095 1905 Upgrades 21 | 6 4 . . 6 5 Propulsion Slot 2 | 1 . . . 1 . Utility Slot 4 | 3 . . . . 1 Weapon Slot 1 | . 1 . . . . Core Integrity 3 | . . . . 3 . Mass Support 1 | . . . . 1 . Inventory Capacity 2 | . 2 . . . . Sight Range 1 | . . . . . 1 Sensor Range 2 | 1 . . . . 1 Terrain Scan Density 3 | 1 . . . 1 1 Hack Attack % 1 | . 1 . . . . Hack Defense % 1 | . . . . . 1 Protomatter Created 235 | . 64 32 . . 139 Integrity Restored 462 | . 219 96 . . 147 Core 462 | . 219 96 . . 147 Protomatter Decayed 5 | . 5 . . . . Game ------ Seed MasterAntigravStatue Manual? 0 Play Time 00:21:21 Cumulative 33.9 hours Start 2025.05.08 @ 21:35:38 End 2025.05.08 @ 22:04:21 Sessions 1 Manual Loads 0 Difficulty Rogue Special Mode Winter2019/RPGLIKE Game No. 58 Rogue 58 Adventurer 0 Explorer 0 Win Type - Total 0 Types 0/0/0/0/0/0/0/0/0/0 Lore% 10 Gallery% 24 Achievement% 24 Wizard Run 0 Options --------- Layout 2 ASCII 0 Keyboard 0 Movement Arrows Keybinds 0 Fullscreen 1 Font 24/Smallcaps Map View 50x44 Zoom Use 0% Tactical HUD 1 Map Filters NONE Filters NONE Steam 1 RUN: 3fa9efec-14b4-444c-8183-68ce9ee5557c